fUSD/lending_fUSD_20241107
["ID","MTS","AMOUNT","RATE_DAILY","PERIOD"]
[341600866,1731018648829,-500.0,0.00027397,2]
[341600867,1731018648838,-540.92990509,0.00027397,2]
[341600868,1731018648848,-540.69,0.00027397,2]
[341600869,1731018648858,-500.0,0.00027397,2]
[341600870,1731018648867,-603.68,0.00027397,2]
[341600871,1731018648877,-1710.16,0.00027397,2]
[341600872,1731018648886,-500.0,0.00027397,2]
[341600873,1731018648896,-500.0,0.00027397,2]
[341600874,1731018648909,-500.0,0.00027397,2]
[341600875,1731018648918,-500.0,0.00027397,2]
[341600876,1731018648927,-547.06,0.00027397,2]
[341600877,1731018648938,-1165.62,0.00027397,2]
[341600878,1731018648959,-519.96,0.00027397,2]
[341600879,1731018648972,-500.0,0.00027397,2]
[341600880,1731018648982,-1057.97,0.00027397,2]
[341600881,1731018648991,-502.53,0.00027397,2]
[341600882,1731018649000,-500.0,0.00027397,2]
[341600883,1731018649009,-663.86,0.00027397,2]
[341600884,1731018649019,-1420.25,0.00027397,2]
[341600885,1731018649028,-574.67,0.00027397,2]
[341600886,1731018649037,-151.0,0.00027397,7]
[341600887,1731018649046,-919.69,0.00027397,2]
[341600888,1731018649057,-500.0,0.00027397,2]
[341600889,1731018649066,-2434.48,0.00027397,2]
[341600890,1731018649075,-151.0,0.00027397,7]
[341600891,1731018649084,-571.58,0.00027397,2]
[341600892,1731018649093,-500.0,0.00027397,2]
[341600893,1731018649102,-500.0,0.00027397,2]
[341600894,1731018649112,-543.24,0.00027397,2]
[341600895,1731018649121,-500.0,0.00027397,2]
[341600896,1731018649130,-500.0,0.00027397,2]
[341600897,1731018649139,-500.0,0.00027397,2]
[341600898,1731018649148,-500.0,0.00027397,2]
[341600899,1731018649157,-500.0,0.00027397,2]
[341600900,1731018649167,-500.0,0.00027397,2]
[341600901,1731018649178,-829.19,0.00027397,2]
[341600902,1731018649187,-908.94,0.00027397,2]
[341600903,1731018649199,-533.85,0.00027397,2]
[341600904,1731018649208,-500.0,0.00027397,2]
[341600905,1731018649218,-500.0,0.00027397,2]
[341600906,1731018649227,-619.35,0.00027397,2]
[341600907,1731018649237,-500.0,0.00027397,2]
[341600908,1731018649248,-1174.03,0.00027397,2]
[341600909,1731018649257,-500.0,0.00027397,2]
[341600910,1731018649266,-500.0,0.00027397,2]
[341600911,1731018649276,-500.0,0.00027397,2]
[341600912,1731018649284,-1442.78,0.00027397,2]
[341600913,1731018649294,-1818.53,0.00027397,2]
[341600914,1731018649303,-500.0,0.00027397,2]
[341600915,1731018649312,-569.5,0.00027397,2]
[341600916,1731018649321,-190.603974,0.00027397,7]
[341600917,1731018649330,-500.0,0.00027397,2]
[341600918,1731018649339,-500.0,0.00027397,2]
[341600919,1731018649349,-1327.57331285,0.00027397,120]
[341600920,1731018649358,-500.0,0.00027397,2]
[341600921,1731018649367,-642.84,0.00027397,2]
[341600922,1731018649376,-2380.73,0.00027397,2]
[341600923,1731018649385,-1193.99,0.00027397,2]
[341600924,1731018649394,-500.0,0.00027397,2]
[341600925,1731018649404,-500.0,0.00027397,2]
[341600926,1731018649413,-500.0,0.00027397,2]
[341600927,1731018649422,-500.0,0.00027397,2]
[341600928,1731018649431,-500.0,0.00027397,2]
[341600929,1731018649440,-500.0,0.00027397,2]
[341600930,1731018649451,-500.0,0.00027397,2]
[341600931,1731018649461,-500.0,0.00027397,2]
[341600932,1731018649471,-500.0,0.00027397,2]
[341600933,1731018649480,-544.26,0.00027397,2]
[341600934,1731018649489,-834.15,0.00027397,2]
[341600935,1731018649499,-500.0,0.00027397,2]
[341600936,1731018649508,-500.0,0.00027397,2]
[341600937,1731018649517,-893.85,0.00027397,2]
[341600938,1731018649527,-151.0,0.00027397,7]
[341600939,1731018649537,-1360.031189,0.00027397,7]
[341600940,1731018649547,-1249.62,0.00027397,2]
[341600941,1731018649556,-563.17,0.00027397,2]
[341600942,1731018649574,-500.0,0.00027397,2]
[341600943,1731018649584,-500.0,0.00027397,2]
[341600944,1731018649593,-500.0,0.00027397,2]
[341600945,1731018649602,-1360.031189,0.00027397,7]
[341600946,1731018649612,-151.0,0.00027397,7]
[341600947,1731018649621,-2168.49,0.00027397,2]
[341600948,1731018649631,-500.0,0.00027397,2]
[341600949,1731018649640,-1231.07,0.00027397,2]
[341600950,1731018649649,-517.39,0.00027397,2]
[341600951,1731018649659,-500.0,0.00027397,2]
[341600952,1731018649668,-500.0,0.00027397,2]
[341600953,1731018649678,-500.0,0.00027397,2]
[341600954,1731018649688,-500.0,0.00027397,2]
[341600955,1731018649699,-3267.59,0.00027397,2]
[341600956,1731018649709,-500.0,0.00027397,2]
[341600957,1731018649719,-799.65,0.00027397,2]
[341600958,1731018649729,-1529.44,0.00027397,2]
[341600959,1731018649739,-1045.1,0.00027397,2]
[341600960,1731018649749,-725.75,0.00027397,2]
[341600961,1731018649758,-500.0,0.00027397,2]
[341600962,1731018649768,-500.0,0.00027397,2]
[341600963,1731018649778,-500.0,0.00027397,2]
[341600964,1731018649787,-568.55,0.00027397,2]
[341600965,1731018649796,-500.0,0.00027397,2]
[341600966,1731018649806,-497.28150742,0.00027397,2]
[341600967,1731018649854,-2.71849258,0.00027397,2]
[341600968,1731018649865,-893.88,0.00027397,2]
[341600969,1731018649875,-500.0,0.00027397,2]
[341600970,1731018649884,-551.99,0.00027397,2]
[341600971,1731018649894,-151.0,0.00027397,7]
[341600972,1731018649904,-151.0,0.00027397,7]
[341600973,1731018649915,-500.0,0.00027397,2]
[341600974,1731018649925,-2152.87900747,0.00027397,2]
[341600975,1731018649935,-2449.15099253,0.00027397,2]
[341600976,1731018649945,-500.0,0.00027397,2]
[341600977,1731018649956,-500.0,0.00027397,2]
[341600978,1731018649965,-798.07,0.00027397,2]
[341600979,1731018649975,-500.0,0.00027397,2]
[341600980,1731018649983,-826.36,0.00027397,2]
[341600981,1731018649992,-500.0,0.00027397,2]
[341600982,1731018650001,-151.0,0.00027397,7]
[341600983,1731018650011,-500.0,0.00027397,2]
[341600984,1731018650020,-500.0,0.00027397,2]
[341600985,1731018650030,-500.0,0.00027397,2]
[341600986,1731018650039,-151.0,0.00027397,7]
[341600987,1731018650048,-500.0,0.00027397,2]
[341600988,1731018650058,-151.0,0.00027397,7]
[341600989,1731018650067,-849.43,0.00027397,2]
[341600990,1731018650076,-720.83,0.00027397,2]
[341600991,1731018650085,-500.0,0.00027397,2]
[341600992,1731018650094,-500.0,0.00027397,2]
[341600993,1731018650104,-151.0,0.00027397,7]
[341600994,1731018650113,-1383.06,0.00027397,2]
[341600995,1731018650122,-500.0,0.00027397,2]
[341600996,1731018650132,-500.0,0.00027397,2]
[341600997,1731018650141,-440.01374612,0.00027397,2]
[341600998,1731018650150,-135.5852613,0.00027397,2]
[341600999,1731018651208,-1033.71287145,0.00027198,2]
[341601000,1731018651218,-1377.8047387,0.00027397,2]
[341601001,1731018651227,-509.85698526,0.00027397,2]
[341601002,1731018651237,-500.0,0.00027397,2]
[341601003,1731018651248,-500.0,0.00027397,2]
[341601004,1731018651258,-500.0,0.00027397,2]
[341601005,1731018651267,-507.57259688,0.00027397,2]
[341601006,1731018651276,-594.87,0.00027397,2]
[341601007,1731018651285,-500.0,0.00027397,2]
[341601008,1731018651294,-500.0,0.00027397,2]
[341601009,1731018651303,-500.0,0.00027397,2]
[341601010,1731018651313,-795.39,0.00027397,2]
[341601011,1731018651323,-500.0,0.00027397,2]
[341601012,1731018651333,-500.0,0.00027397,2]
[341601013,1731018651343,-500.0,0.00027397,2]
[341601014,1731018651353,-3301.41,0.00027397,2]
[341601015,1731018651362,-525.99,0.00027397,2]
[341601016,1731018651371,-500.0,0.00027397,2]
[341601017,1731018651381,-698.25,0.00027397,2]
[341601018,1731018651390,-500.0,0.00027397,2]
[341601019,1731018651400,-1043.33,0.00027397,2]
[341601020,1731018651409,-832.15,0.00027397,2]
[341601021,1731018651420,-1573.05,0.00027397,2]
[341601022,1731018651431,-500.0,0.00027397,2]
[341601023,1731018651441,-151.0,0.00027397,7]
[341601024,1731018651450,-151.0,0.00027397,7]
[341601025,1731018651460,-500.0,0.00027397,2]
[341601026,1731018651469,-500.0,0.00027397,2]
[341601027,1731018651478,-674.9,0.00027397,2]
[341601028,1731018651488,-500.0,0.00027397,2]
[341601029,1731018651498,-500.0,0.00027397,2]
[341601030,1731018651508,-500.0,0.00027397,2]
[341601031,1731018651517,-150.65438522,0.00027397,2]
[341601032,1731018651526,-262.05842249,0.00027397,2]
[341601033,1731018651539,-237.94157751,0.00027397,2]
[341601034,1731018651549,-140.37842249,0.00027397,2]
[341601035,1731018651645,-546.15157751,0.00027397,2]
[341601036,1731018651656,-1000.0,0.00027397,2]
[341601037,1731018651666,-500.0,0.00027397,2]
[341601038,1731018651676,-500.0,0.00027397,2]
[341601039,1731018651685,-500.0,0.00027397,2]
[341601040,1731018651694,-281.99052312,0.00027397,2]
[341601041,1731018651799,-218.00947688,0.00027397,2]
[341601042,1731018651809,-500.0,0.00027397,2]
[341601043,1731018651818,-2.88372809,0.00027397,2]
[341601044,1731018651839,-497.11627191,0.00027397,2]
[341601045,1731018651848,-679.32,0.00027397,2]
[341601046,1731018651858,-1190.55215083,0.00027397,2]
[341601047,1731018651873,-179.09784917,0.00027397,2]
[341601048,1731018651882,-500.0,0.00027397,2]
[341601049,1731018651891,-500.0,0.00027397,2]
[341601050,1731018651900,-26.72215083,0.00027397,2]
[341601051,1731018659690,150.5838706,0.00018123,2]
[341601060,1731018885747,150.0,0.00015342,2]
[341601061,1731018885775,57.24,0.00015342,2]
[341601068,1731019202801,150.0,0.00015342,2]
[341601069,1731019203428,150.0,0.00015342,2]
[341601070,1731019203659,150.0,0.00015342,2]
[341601071,1731019203880,150.0,0.00015342,2]
[341601072,1731019204099,150.0,0.00015342,2]
[341601073,1731019204350,150.0,0.00015342,2]
[341601074,1731019204565,150.0,0.00015342,2]
[341601075,1731019204884,150.0,0.00015342,2]
[341601076,1731019205485,150.0,0.00015342,2]
[341601077,1731019205612,150.0,0.00015342,2]
[341601078,1731019205731,150.0,0.00015342,2]
[341601079,1731019205780,269.44012651,0.00015342,2]
[341601081,1731019419058,458.53004265,0.00025,7]
[341601083,1731019481721,150.0,0.00015342,2]
[341601084,1731019481742,3.28,0.00015342,2]
[341601085,1731019532124,757.4,0.00025,7]
[341601086,1731019533133,-153.28,0.000221,2]
[341601087,1731019533154,-65.60999375,0.00022378,2]
[341601088,1731019552719,299.99,0.00023182,7]
[341601089,1731019554097,-450.0,0.00021,2]
[341601090,1731019554117,-214.40619623,0.00022378,2]
[341601091,1731019554137,-622.41408335,0.00022478,2]
[341601092,1731019554157,-280.01618998,0.0002273,2]
[341601093,1731019554177,-500.0,0.00023,2]
[341601094,1731019554198,-280.01618998,0.00023082,2]
[341601095,1731019554218,-1600.36,0.00023182,2]
[341601096,1731019554237,-808.710251,0.00023705,2]
[341601097,1731019554257,-432.10501378,0.00023824,2]
[341601098,1731019554276,-9999.99,0.00023824,2]
[341601099,1731019554296,-5942.85387739,0.00023924,2]
[341601100,1731019554315,-1499.86,0.00023924,2]
[341601101,1731019554336,-1059.17,0.00024504,2]
[341601102,1731019554355,-166.9742637,0.00024868,2]
[341601103,1731019554375,-446.69,0.0002489,2]
[341601104,1731019554397,-1059.17,0.00024898,2]
[341601105,1731019554419,-150.0,0.00024932,2]
[341601106,1731019554442,-3750.0159,0.00024968,2]
[341601107,1731019554462,-550.0,0.00025,2]
[341601108,1731019554482,-300.0,0.00025016,2]
[341601109,1731019554502,-158.6,0.00025057,2]
[341601110,1731019554527,-600.0,0.00025068,7]
[341601111,1731019554547,-700.0,0.00025068,7]
[341601112,1731019554566,-169.65,0.00025068,2]
[341601113,1731019554585,-487.12,0.00025086,2]
[341601114,1731019554604,-164.3,0.00025088,2]
[341601115,1731019554625,-14152.65,0.000251,2]
[341601116,1731019554644,-250.0,0.00025115,2]
[341601117,1731019554664,-489.48,0.00025119,2]
[341601118,1731019554683,-2000.0,0.0002516,2]
[341601119,1731019554705,-1697.34,0.00025183,2]
[341601120,1731019554726,-200.0,0.00025185,2]
[341601121,1731019554747,-250.0,0.00025202,2]
[341601122,1731019554767,-724.75,0.00025244,2]
[341601123,1731019554788,-157.03,0.00025279,30]
[341601124,1731019554811,-1059.17,0.00025292,2]
[341601125,1731019554831,-150.0,0.00025393,2]
[341601126,1731019554852,-333.79,0.00025393,120]
[341601127,1731019554872,-1600.36,0.00025446,2]
[341601128,1731019554893,-437.33,0.00025446,2]
[341601129,1731019554912,-1381.55,0.00025485,2]
[341601130,1731019554934,-14.87336984,0.00025516,2]
[341601131,1731019636086,-469.20826465,0.00025068,7]
[341601132,1731019636119,-230.79173535,0.00025068,7]
[341601133,1731019636140,-102.01413551,0.00025068,7]
[341601134,1731019641120,-497.98586449,0.00025068,7]
[341601135,1731019641140,-136.11663016,0.00025516,2]
[341601136,1731019641160,-164.57,0.00025517,2]
[341601137,1731019641180,-2817.91,0.00025539,2]
[341601138,1731019641201,-485.87165105,0.00025597,2]
[341601139,1731019642118,-19604.3882379,0.00025597,2]
[341601140,1731019765098,-600.0,0.00025068,7]
[341601141,1731019765120,-600.0,0.00025068,7]
[341601144,1731019832047,-4827.32,0.00025683,2]
[341601145,1731019832057,-255.73,0.00025683,2]
[341601146,1731019832066,-1059.17,0.00025685,2]
[341601147,1731019832075,-500.0,0.00025718,2]
[341601148,1731019832084,-466.33,0.00025736,2]
[341601149,1731019832093,-1840.13,0.00025736,2]
[341601150,1731019832102,-911.17,0.00025738,2]
[341601151,1731019832111,-999.99,0.00025738,2]
[341601152,1731019832120,-220.59,0.00025745,2]
[341601153,1731019832129,-250.0,0.00025812,2]
[341601154,1731019832139,-1852.42,0.00025812,2]
[341601155,1731019832148,-166.91,0.00025831,120]
[341601156,1731019832158,-158.13,0.00025832,2]
[341601157,1731019832167,-14901.57689635,0.00025841,2]
[341601158,1731019832178,-8935.60430468,0.00025841,2]
[341601159,1731019832201,-62.81879897,0.00025841,2]
[341601160,1731019832210,-197.32,0.00025847,2]
[341601161,1731019832219,-368.66,0.0002585,2]
[341601162,1731019832228,-340.64781773,0.0002589,7]
[341601163,1731019832239,-259.35218227,0.0002589,7]
[341601164,1731019832248,-600.0,0.0002589,7]
[341601165,1731019832257,-1000.0,0.00025964,2]
[341601166,1731019832266,-900.0,0.00026,27]
[341601167,1731019832275,-1059.17,0.00026079,2]
[341601168,1731019832284,-500.0,0.00026164,7]
[341601169,1731019832293,-1059.17,0.00026473,2]
[341601170,1731019832302,-264.94,0.0002654,120]
[341601171,1731019832311,-600.0,0.00026712,7]
[341601172,1731019832321,-600.0,0.00026712,7]
[341601173,1731019832330,-1652.0,0.00026852,2]
[341601174,1731019832339,-1059.17,0.00026867,2]
[341601175,1731019832348,-1044.0,0.000269,2]
[341601176,1731019832358,-1600.0,0.00026962,3]
[341601177,1731019832367,-800.0,0.00026986,120]
[341601178,1731019832376,-6466.0422,0.00026997,2]
[341601179,1731019832384,-4722.0,0.00027,2]
[341601180,1731019832394,-150.0,0.00027,30]
[341601181,1731019832403,-3222.08901816,0.00027,3]
[341601182,1731019832474,-36.97843013,0.00027,3]
[341601183,1731019832887,450.0,0.00021,2]
[341601184,1731019833771,500.0,0.00023,2]
[341601185,1731019834840,550.0,0.00025,2]
[341601209,1731019838918,-500.0,0.00026999,2]
[341601211,1731019838928,-500.0,0.00026999,2]
[341601213,1731019838938,-500.0,0.00026999,2]
[341601214,1731019838948,-194.37044588,0.00026999,2]
[341601216,1731019838958,-429.59175142,0.00026999,2]
[341601218,1731019838967,-500.0,0.00026999,2]
[341601220,1731019838977,-500.0,0.00026999,2]
[341601222,1731019838986,-424.79411508,0.00026999,2]
[341601224,1731019838995,-263.13793812,0.00026999,2]
[341601226,1731019839004,-500.0,0.00026999,2]
[341601228,1731019839014,-500.0,0.00026999,2]
[341601229,1731019839023,-356.66059249,0.00026999,2]
[341601231,1731019839032,-1197.08352768,0.00027,3]
[341601243,1731019839139,-2001.58,0.00027,3]
[341601245,1731019839150,-2169.3434462,0.00027,3]
[341601279,1731019839545,-6161.19289026,0.00027,3]
[341601280,1731019839558,-55986.77833267,0.00027,3]
[341601281,1731019839567,-2437.83884699,0.00027,2]
[341601282,1731019839578,-600.0,0.00027,2]
[341601283,1731019839590,-1000.0,0.000271,2]
[341601284,1731019839600,-948.33,0.00027123,2]
[341601285,1731019839609,-2437.83884699,0.00027149,2]
[341601286,1731019839618,-987.913,0.00027181,15]
[341601287,1731019839627,-7093.5363,0.00027197,2]
[341601288,1731019839636,-3681.97293024,0.00027197,2]
[341601289,1731019839646,-150.110806,0.00027198,2]
[341601290,1731019839655,-1021.0,0.000272,2]
[341601291,1731019839664,-254.57,0.000272,2]
[341601292,1731019839676,-1000.0,0.00027259,2]
[341601293,1731019839685,-761.84,0.0002726,2]
[341601294,1731019839695,-761.84,0.0002726,2]
[341601295,1731019839704,-761.84,0.0002726,2]
[341601297,1731019839714,-427.61,0.0002726,2]
[341601299,1731019839723,-427.61,0.0002726,2]
[341601301,1731019839734,-761.84,0.0002726,2]
[341601302,1731019839743,-427.61,0.0002726,2]
[341601304,1731019839752,-759.09,0.0002726,2]
[341601306,1731019839762,-422.23,0.0002726,2]
[341601308,1731019839772,-427.61,0.0002726,2]
[341601310,1731019839782,-1059.17,0.0002726,2]
[341601312,1731019839791,-2500.0,0.00027284,2]
[341601314,1731019839801,-1263.37189023,0.00027296,10]
[341601316,1731019839811,-200.0,0.00027297,2]
[341601318,1731019839820,-28840.8652,0.00027297,2]
[341601320,1731019839830,-150.27684352,0.00027297,2]
[341601322,1731019839839,-176.11698715,0.00027297,2]
[341601324,1731019839848,-2437.83884699,0.00027297,2]
[341601325,1731019839858,-150.110806,0.00027298,2]
[341601327,1731019839868,-2000.0,0.00027314,5]
[341601329,1731019839878,-1500.0,0.00027319,2]
[341601331,1731019839888,-322.49134695,0.00027373,2]
[341601333,1731019839897,-500.0,0.00027373,2]
[341601335,1731019839907,-160.79837592,0.00027373,2]
[341601337,1731019839916,-500.0,0.00027373,2]
[341601339,1731019839926,-249.92004866,0.00027373,2]
[341601341,1731019839936,-15506.0936378,0.00027384,2]
[341601342,1731019839945,-366.0823259,0.00027384,2]
[341601345,1731019839955,-150.0,0.00027386,2]
[341601346,1731019839966,-150.0,0.00027391,2]
[341601347,1731019839976,-500.0,0.00027395,2]
[341601348,1731019839987,-500.0,0.00027395,2]
[341601349,1731019839996,-500.0,0.00027395,2]
[341601350,1731019840006,-500.0,0.00027395,2]
[341601351,1731019840016,-307.23199337,0.00027395,2]
[341601352,1731019840027,-500.0,0.00027395,2]
[341601353,1731019840038,-500.0,0.00027395,2]
[341601354,1731019840048,-1002.4544,0.00027396,2]
[341601355,1731019840058,-150.0,0.00027396,2]
[341601356,1731019840068,-16644.72351129,0.00027396,2]
[341601357,1731019840077,-151.0,0.00027397,7]
[341601358,1731019840088,-279.596732,0.00027397,7]
[341601359,1731019840097,-566.41904848,0.00027397,2]
[341601360,1731019840107,-211.33847738,0.00027397,2]
[341601361,1731019840116,-500.0,0.00027397,2]
[341601362,1731019840126,-500.0,0.00027397,2]
[341601363,1731019840135,-416.52421522,0.00027397,2]
[341601364,1731019840144,-500.0,0.00027397,2]
[341601365,1731019840154,-627.07,0.00027397,2]
[341601366,1731019840164,-500.0,0.00027397,2]
[341601367,1731019840174,-500.0,0.00027397,2]
[341601368,1731019840184,-500.0,0.00027397,2]
[341601369,1731019840194,-500.0,0.00027397,2]
[341601370,1731019840203,-500.0,0.00027397,2]
[341601371,1731019840212,-500.0,0.00027397,2]
[341601372,1731019840221,-500.0,0.00027397,2]
[341601373,1731019840231,-210.11042679,0.00027397,2]
[341601374,1731019840241,-500.0,0.00027397,2]
[341601375,1731019840251,-500.0,0.00027397,2]
[341601376,1731019840262,-500.0,0.00027397,2]
[341601377,1731019840271,-500.0,0.00027397,2]
[341601378,1731019840281,-500.0,0.00027397,2]
[341601379,1731019840291,-500.0,0.00027397,2]
[341601380,1731019840300,-632.57,0.00027397,2]
[341601381,1731019840309,-500.0,0.00027397,2]
[341601382,1731019840319,-500.0,0.00027397,2]
[341601383,1731019840328,-500.0,0.00027397,2]
[341601384,1731019840337,-500.0,0.00027397,2]
[341601385,1731019840347,-587.65,0.00027397,2]
[341601386,1731019840356,-227.72900301,0.00027397,2]
[341601387,1731019840366,-511.81467233,0.00027397,2]
[341601388,1731019840375,-500.0,0.00027397,2]
[341601389,1731019840385,-455.56847432,0.00027397,2]
[341601390,1731019840394,-500.0,0.00027397,2]
[341601391,1731019840403,-500.0,0.00027397,2]
[341601392,1731019840413,-500.0,0.00027397,2]
[341601393,1731019840423,-500.0,0.00027397,2]
[341601394,1731019840433,-512.26,0.00027397,2]
[341601395,1731019840442,-521.26747256,0.00027397,2]
[341601396,1731019840451,-500.0,0.00027397,2]
[341601397,1731019840461,-500.0,0.00027397,2]
[341601398,1731019840469,-500.0,0.00027397,2]
[341601399,1731019840479,-235.57141328,0.00027397,2]
[341601400,1731019840488,-500.0,0.00027397,2]
[341601401,1731019840498,-500.0,0.00027397,2]
[341601402,1731019840508,-500.0,0.00027397,2]
[341601403,1731019840521,-500.0,0.00027397,2]
[341601404,1731019840530,-500.0,0.00027397,2]
[341601405,1731019840539,-500.0,0.00027397,2]
[341601406,1731019840549,-500.0,0.00027397,2]
[341601407,1731019840559,-836.52,0.00027397,2]
[341601408,1731019840568,-500.0,0.00027397,2]
[341601409,1731019840577,-500.0,0.00027397,2]
[341601410,1731019840589,-500.0,0.00027397,2]
[341601411,1731019840599,-500.0,0.00027397,2]
[341601412,1731019840608,-500.0,0.00027397,2]
[341601413,1731019840618,-552.0010141,0.00027397,2]
[341601414,1731019840628,-500.0,0.00027397,2]
[341601415,1731019840638,-500.0,0.00027397,2]
[341601416,1731019840647,-500.0,0.00027397,2]
[341601417,1731019840657,-500.0,0.00027397,2]
[341601418,1731019840666,-623.37,0.00027397,2]
[341601419,1731019840681,-500.0,0.00027397,2]
[341601420,1731019840690,-364.65,0.00027397,2]
[341601421,1731019840700,-500.0,0.00027397,2]
[341601422,1731019840710,-500.0,0.00027397,2]
[341601423,1731019840719,-500.0,0.00027397,2]
[341601424,1731019840728,-500.0,0.00027397,2]
[341601425,1731019840737,-500.0,0.00027397,2]
[341601426,1731019840746,-500.0,0.00027397,2]
[341601427,1731019840755,-500.0,0.00027397,2]
[341601428,1731019840765,-266.65484053,0.00027397,2]
[341601429,1731019840775,-512.76,0.00027397,2]
[341601430,1731019840784,-819.24,0.00027397,2]
[341601431,1731019840794,-500.0,0.00027397,2]
[341601432,1731019840803,-500.0,0.00027397,2]
[341601433,1731019840812,-145.05176188,0.00027397,2]
[341601434,1731019840842,-354.94823812,0.00027397,2]
[341601435,1731019840851,-500.0,0.00027397,2]
[341601436,1731019840861,-500.0,0.00027397,2]
[341601437,1731019840870,-500.0,0.00027397,2]
[341601438,1731019840880,-709.58,0.00027397,2]
[341601439,1731019840889,-500.0,0.00027397,2]
[341601440,1731019840898,-500.0,0.00027397,2]
[341601441,1731019840907,-623.19152156,0.00027397,2]
[341601442,1731019840918,-478.70449289,0.00027397,2]
[341601443,1731019840931,-21.29550711,0.00027397,2]
[341601444,1731019840940,-500.0,0.00027397,2]
[341601445,1731019840950,-500.0,0.00027397,2]
[341601446,1731019840961,-500.0,0.00027397,2]
[341601447,1731019840970,-500.0,0.00027397,2]
[341601448,1731019840980,-500.0,0.00027397,2]
[341601449,1731019840991,-500.0,0.00027397,2]
[341601450,1731019841001,-500.0,0.00027397,2]
[341601451,1731019841010,-609.73,0.00027397,2]
[341601452,1731019841019,-500.0,0.00027397,2]
[341601453,1731019841028,-500.0,0.00027397,2]
[341601454,1731019841038,-500.0,0.00027397,2]
[341601455,1731019841047,-500.0,0.00027397,2]
[341601456,1731019841056,-500.0,0.00027397,2]
[341601457,1731019841065,-354.08359042,0.00027397,2]
[341601458,1731019841074,-152.285421,0.00027397,2]
[341601459,1731019841083,-94.04125037,0.00027397,2]
[341601460,1731019841118,-70.82971763,0.00027397,2]
[341601461,1731019841127,-153.1758,0.00027397,2]
[341601462,1731019841137,-500.0,0.00027397,2]
[341601463,1731019841147,-500.0,0.00027397,2]
[341601464,1731019841158,-500.0,0.00027397,2]
[341601465,1731019841168,-500.0,0.00027397,2]
[341601466,1731019841177,-500.0,0.00027397,2]
[341601467,1731019841186,-500.0,0.00027397,2]
[341601468,1731019841195,-500.0,0.00027397,2]
[341601469,1731019841204,-500.0,0.00027397,2]
[341601470,1731019841213,-88.35604021,0.00027397,2]
[341601471,1731019841272,-411.64395979,0.00027397,2]
[341601472,1731019841283,-500.0,0.00027397,2]
[341601473,1731019841294,-150.53741,0.00027397,2]
[341601474,1731019841377,-500.0,0.00027397,2]
[341601475,1731019841386,-500.0,0.00027397,2]
[341601476,1731019841396,-500.0,0.00027397,2]
[341601477,1731019841405,-500.0,0.00027397,2]
[341601478,1731019841414,-500.0,0.00027397,2]
[341601479,1731019841423,-220.96863021,0.00027397,2]
[341601480,1731019841631,-52.13425163,0.00027397,2]
[341601481,1731019841644,-226.89711816,0.00027397,2]
[341601482,1731019841653,-150.0,0.00027397,2]
[341601483,1731019841662,-500.0,0.00027397,2]
[341601484,1731019841672,-500.0,0.00027397,2]
[341601485,1731019841681,-616.2,0.00027397,2]